[Event "Titled Tuesday Blitz April 25 Late 2023"]
[White "Kuzmin, Roman"]
[Black "Rastbod, Ali"]
[WhiteFideId "44134932"]
[BlackFideId "12567477"]
[WhiteElo "2192"]
[BlackElo "2248"]
[Result "0-1"]
[Round "04"]
[TimeControl "180+2"]
[Date "2023.04.25"]
[WhiteClock "0:00:06"]
[BlackClock "0:00:21"]

1. e4 {[%clk 0:03:00]}  Nc6 {[%clk 0:02:29]} 2. Nc3 {[%clk 0:02:54]}  g6 {[%clk 0:02:29]} 3. d4 {[%clk 0:02:54]}  Bg7 {[%clk 0:02:30]} 4. Nf3 {[%clk 0:02:54]}  d6 {[%clk 0:02:26]} 5. d5 {[%clk 0:02:51]}  Nb8 {[%clk 0:02:26]} 6. Be3 {[%clk 0:02:49]}  c6 {[%clk 0:02:26]} 7. Qd2 {[%clk 0:02:43]}  Nf6 {[%clk 0:02:26]} 8. Bh6 {[%clk 0:02:29]}  Bxh6 {[%clk 0:02:26]} 9. Qxh6 {[%clk 0:02:30]}  Qa5 {[%clk 0:02:24]} 10. Qd2 {[%clk 0:02:26]}  Bg4 {[%clk 0:02:19]} 11. Nd4 {[%clk 0:02:20]}  O-O {[%clk 0:02:14]} 12. h3 {[%clk 0:02:06]}  Bc8 {[%clk 0:02:10]} 13. Be2 {[%clk 0:02:03]}  cxd5 {[%clk 0:01:49]} 14. exd5 {[%clk 0:01:50]}  Nbd7 {[%clk 0:01:34]} 15. O-O {[%clk 0:01:41]}  Nb6 {[%clk 0:01:28]} 16. Nb3 {[%clk 0:01:35]}  Qb4 {[%clk 0:01:27]} 17. a3 {[%clk 0:01:28]}  Qh4 {[%clk 0:01:25]} 18. Rfe1 {[%clk 0:01:29]}  Bd7 {[%clk 0:01:17]} 19. Bf3 {[%clk 0:01:26]}  Rfe8 {[%clk 0:01:17]} 20. Na5 {[%clk 0:01:21]}  Nc4 {[%clk 0:01:15]} 21. Nxc4 {[%clk 0:01:18]}  Qxc4 {[%clk 0:01:16]} 22. Ne4 {[%clk 0:01:03]}  Kg7 {[%clk 0:00:56]} 23. Nxf6 {[%clk 0:00:52]}  exf6 {[%clk 0:00:57]} 24. b3 {[%clk 0:00:48]}  Qc5 {[%clk 0:00:55]} 25. c4 {[%clk 0:00:38]}  a5 {[%clk 0:00:52]} 26. Rec1 {[%clk 0:00:29]}  Rec8 {[%clk 0:00:39]} 27. b4 {[%clk 0:00:21]}  Qb6 {[%clk 0:00:39]} 28. Rab1 {[%clk 0:00:19]}  axb4 {[%clk 0:00:38]} 29. axb4 {[%clk 0:00:20]}  Qa7 {[%clk 0:00:36]} 30. Be2 {[%clk 0:00:17]}  Qa3 {[%clk 0:00:35]} 31. Bf1 {[%clk 0:00:14]}  Bf5 {[%clk 0:00:34]} 32. Rb2 {[%clk 0:00:13]}  Ra4 {[%clk 0:00:29]} 33. c5 {[%clk 0:00:11]}  dxc5 {[%clk 0:00:29]} 34. bxc5 {[%clk 0:00:12]}  Rxc5 {[%clk 0:00:29]} 35. Rxc5 {[%clk 0:00:13]}  Qxc5 {[%clk 0:00:30]} 36. Rxb7 {[%clk 0:00:13]}  Rd4 {[%clk 0:00:30]} 37. Qe3 {[%clk 0:00:09]}  Rxd5 {[%clk 0:00:21]} 38. Qe8 {[%clk 0:00:08]}  Qf8 {[%clk 0:00:22]} 39. Qxf8+ {[%clk 0:00:06]}  Kxf8 {[%clk 0:00:23]} 40. Bc4 {[%clk 0:00:05]}  Rd7 {[%clk 0:00:20]} 41. Rxd7 {[%clk 0:00:03]}  Bxd7 {[%clk 0:00:21]} 42. g3 {[%clk 0:00:04]}  Ke7 {[%clk 0:00:21]} 43. h4 {[%clk 0:00:04]}  Be6 {[%clk 0:00:21]} 44. Be2 {[%clk 0:00:04]}  Kd6 {[%clk 0:00:22]} 45. Kg2 {[%clk 0:00:04]}  Ke5 {[%clk 0:00:23]} 46. Kf3 {[%clk 0:00:04]}  Kd4 {[%clk 0:00:22]} 47. Bf1 {[%clk 0:00:03]}  g5 {[%clk 0:00:19]} 48. hxg5 {[%clk 0:00:02]}  fxg5 {[%clk 0:00:19]} 49. Ba6 {[%clk 0:00:02]}  f5 {[%clk 0:00:17]} 50. Bb7 {[%clk 0:00:02]}  Bd5+ {[%clk 0:00:17]} 51. Bxd5 {[%clk 0:00:03]}  Kxd5 {[%clk 0:00:18]} 52. Ke3 {[%clk 0:00:03]}  h5 {[%clk 0:00:17]} 53. Kf3 {[%clk 0:00:03]}  Kd4 {[%clk 0:00:17]} 54. Kg2 {[%clk 0:00:04]}  Ke4 {[%clk 0:00:17]} 55. Kg1 {[%clk 0:00:03]}  Kf3 {[%clk 0:00:17]} 56. Kf1 {[%clk 0:00:04]}  h4 {[%clk 0:00:18]} 57. gxh4 {[%clk 0:00:04]}  gxh4 {[%clk 0:00:19]} 58. Kg1 {[%clk 0:00:05]}  h3 {[%clk 0:00:20]} 59. Kh2 {[%clk 0:00:05]}  Kxf2 {[%clk 0:00:20]} 60. Kxh3 {[%clk 0:00:06]}  f4 {[%clk 0:00:21]} 0-1


[Site "https://www.chess.com"]

[Event "Titled Tuesday Blitz April 25 Late 2023"]
[White "Jaskolka, Tomasz"]
[Black "Sabuk, Piotr"]
[WhiteFideId "1170791"]
[BlackFideId "1137565"]
[WhiteElo "2155"]
[BlackElo "2298"]
[Result "0-1"]
[Round "04"]
[TimeControl "180+2"]
[Date "2023.04.25"]
[WhiteClock "0:00:13"]
[BlackClock "0:00:06"]

1. d4 {[%clk 0:03:00]}  d5 {[%clk 0:02:59]} 2. Bf4 {[%clk 0:03:00]}  Nf6 {[%clk 0:02:56]} 3. e3 {[%clk 0:03:00]}  c5 {[%clk 0:02:56]} 4. c3 {[%clk 0:03:01]}  Nc6 {[%clk 0:02:53]} 5. Nd2 {[%clk 0:03:01]}  e6 {[%clk 0:02:48]} 6. Ngf3 {[%clk 0:03:01]}  cxd4 {[%clk 0:02:48]} 7. exd4 {[%clk 0:03:01]}  Nh5 {[%clk 0:02:49]} 8. Be3 {[%clk 0:03:01]}  Bd6 {[%clk 0:02:47]} 9. g3 {[%clk 0:02:58]}  Nf6 {[%clk 0:02:44]} 10. Bd3 {[%clk 0:02:56]}  h6 {[%clk 0:02:30]} 11. Qe2 {[%clk 0:02:53]}  Ng4 {[%clk 0:02:18]} 12. O-O-O {[%clk 0:02:49]}  Bd7 {[%clk 0:02:12]} 13. Kb1 {[%clk 0:02:49]}  Rb8 {[%clk 0:01:52]} 14. h3 {[%clk 0:02:25]}  Nxe3 {[%clk 0:01:50]} 15. Qxe3 {[%clk 0:02:26]}  b5 {[%clk 0:01:48]} 16. Ne5 {[%clk 0:02:27]}  Bxe5 {[%clk 0:01:32]} 17. dxe5 {[%clk 0:02:27]}  Qb6 {[%clk 0:01:32]} 18. Qxb6 {[%clk 0:02:15]}  Rxb6 {[%clk 0:01:32]} 19. f4 {[%clk 0:02:09]}  Ke7 {[%clk 0:01:32]} 20. Rde1 {[%clk 0:02:06]}  Na5 {[%clk 0:01:24]} 21. b3 {[%clk 0:01:56]}  Rc8 {[%clk 0:01:23]} 22. Kb2 {[%clk 0:01:53]}  Nc4+ {[%clk 0:01:06]} 23. Nxc4 {[%clk 0:01:47]}  bxc4 {[%clk 0:01:06]} 24. Bc2 {[%clk 0:01:48]}  a5 {[%clk 0:01:03]} 25. Rhf1 {[%clk 0:01:35]}  Rcb8 {[%clk 0:01:02]} 26. f5 {[%clk 0:01:20]}  exf5 {[%clk 0:00:53]} 27. Bxf5 {[%clk 0:01:19]}  Bxf5 {[%clk 0:00:51]} 28. Rxf5 {[%clk 0:01:19]}  cxb3 {[%clk 0:00:52]} 29. e6 {[%clk 0:01:12]}  bxa2+ {[%clk 0:00:50]} 30. Kxa2 {[%clk 0:01:12]}  Rxe6 {[%clk 0:00:50]} 31. Ref1 {[%clk 0:01:11]}  f6 {[%clk 0:00:40]} 32. Rxd5 {[%clk 0:01:11]}  Re2+ {[%clk 0:00:29]} 33. Ka3 {[%clk 0:01:11]}  Re3 {[%clk 0:00:29]} 34. Rc5 {[%clk 0:01:06]}  Rxg3 {[%clk 0:00:27]} 35. h4 {[%clk 0:01:06]}  h5 {[%clk 0:00:14]} 36. Re1+ {[%clk 0:00:50]}  Kf7 {[%clk 0:00:14]} 37. Rd1 {[%clk 0:00:41]}  Rb7 {[%clk 0:00:14]} 38. Rdd5 {[%clk 0:00:39]}  Kg6 {[%clk 0:00:11]} 39. Rc6 {[%clk 0:00:35]}  Rh3 {[%clk 0:00:08]} 40. Rg5+ {[%clk 0:00:34]}  Kh6 {[%clk 0:00:09]} 41. Rxa5 {[%clk 0:00:32]}  Rxh4 {[%clk 0:00:09]} 42. c4 {[%clk 0:00:33]}  Rh1 {[%clk 0:00:08]} 43. Ka2 {[%clk 0:00:32]}  Rc1 {[%clk 0:00:08]} 44. Rc8 {[%clk 0:00:28]}  Kg6 {[%clk 0:00:07]} 45. c5 {[%clk 0:00:20]}  h4 {[%clk 0:00:07]} 46. c6 {[%clk 0:00:20]}  Rb6 {[%clk 0:00:07]} 47. c7 {[%clk 0:00:09]}  Rb7 {[%clk 0:00:05]} 48. Rh8 {[%clk 0:00:10]}  Rbxc7 {[%clk 0:00:05]} 49. Rxh4 {[%clk 0:00:11]}  R7c2+ {[%clk 0:00:06]} 50. Kb3 {[%clk 0:00:11]}  Rc3+ {[%clk 0:00:06]} 51. Kb2 {[%clk 0:00:11]}  R3c2+ {[%clk 0:00:05]} 52. Kb3 {[%clk 0:00:12]}  Rc7 {[%clk 0:00:06]} 53. Rg4+ {[%clk 0:00:12]}  Kf7 {[%clk 0:00:06]} 54. Rb4 {[%clk 0:00:10]}  Rb1+ {[%clk 0:00:06]} 55. Ka4 {[%clk 0:00:10]}  Rxb4+ {[%clk 0:00:06]} 56. Kxb4 {[%clk 0:00:11]}  g5 {[%clk 0:00:06]} 57. Kb3 {[%clk 0:00:12]}  Kg6 {[%clk 0:00:06]} 58. Ra6 {[%clk 0:00:12]}  g4 {[%clk 0:00:06]} 59. Ka2 {[%clk 0:00:13]}  Kg5 {[%clk 0:00:06]} 60. Rb6 {[%clk 0:00:11]}  f5 {[%clk 0:00:05]} 61. Rb2 {[%clk 0:00:11]}  g3 {[%clk 0:00:05]} 62. Kb1 {[%clk 0:00:12]}  Kg4 {[%clk 0:00:06]} 63. Ka2 {[%clk 0:00:12]}  f4 {[%clk 0:00:06]} 64. Kb1 {[%clk 0:00:13]}  f3 {[%clk 0:00:06]} 65. Rb4+ {[%clk 0:00:13]}  Kh3 {[%clk 0:00:06]} 66. Ka2 {[%clk 0:00:13]}  g2 {[%clk 0:00:06]} 67. Rb3 {[%clk 0:00:12]}  Kg3 {[%clk 0:00:06]} 68. Rb1 {[%clk 0:00:11]}  Ra7+ {[%clk 0:00:06]} 69. Kb2 {[%clk 0:00:10]}  Rb7+ {[%clk 0:00:07]} 70. Kc2 {[%clk 0:00:09]}  Rxb1 {[%clk 0:00:08]} 71. Kd2 {[%clk 0:00:09]}  Rb2+ {[%clk 0:00:07]} 72. Kd3 {[%clk 0:00:10]}  g1=Q {[%clk 0:00:05]} 73. Ke4 {[%clk 0:00:10]}  Qe1+ {[%clk 0:00:06]} 74. Kd3 {[%clk 0:00:11]}  Rd2+ {[%clk 0:00:05]} 75. Kc3 {[%clk 0:00:11]}  Qc1+ {[%clk 0:00:06]} 76. Kb3 {[%clk 0:00:12]}  Rb2+ {[%clk 0:00:06]} 77. Ka3 {[%clk 0:00:13]}  Qa1# {[%clk 0:00:06]} 0-1


[Site "https://www.chess.com"]

[Event "Titled Tuesday Blitz April 25 Late 2023"]
[White "Jaracz, Pawel"]
[Black "Koc, Przemyslaw"]
[WhiteFideId "1102222"]
[BlackFideId "1109081"]
[WhiteElo "2438"]
[BlackElo "2161"]
[Result "0-1"]
[Round "04"]
[TimeControl "180+2"]
[Date "2023.04.25"]
[WhiteClock "0:00:02"]
[BlackClock "0:00:43"]

1. e4 {[%clk 0:03:00]}  e5 {[%clk 0:02:57]} 2. Nf3 {[%clk 0:03:00]}  Nf6 {[%clk 0:02:58]} 3. Nxe5 {[%clk 0:02:58]}  Nxe4 {[%clk 0:02:58]} 4. Qe2 {[%clk 0:02:57]}  Qe7 {[%clk 0:02:58]} 5. Qxe4 {[%clk 0:02:57]}  d6 {[%clk 0:02:59]} 6. d4 {[%clk 0:02:53]}  dxe5 {[%clk 0:02:59]} 7. dxe5 {[%clk 0:02:52]}  Nc6 {[%clk 0:02:59]} 8. Bb5 {[%clk 0:02:50]}  Bd7 {[%clk 0:02:59]} 9. Nc3 {[%clk 0:02:45]}  O-O-O {[%clk 0:02:55]} 10. Bf4 {[%clk 0:02:34]}  Qb4 {[%clk 0:02:47]} 11. O-O-O {[%clk 0:02:23]}  Qxe4 {[%clk 0:02:32]} 12. Nxe4 {[%clk 0:02:23]}  Nxe5 {[%clk 0:02:31]} 13. Bxd7+ {[%clk 0:02:17]}  Nxd7 {[%clk 0:02:31]} 14. Ng5 {[%clk 0:02:16]}  Be7 {[%clk 0:02:10]} 15. Nxf7 {[%clk 0:01:30]}  Rdf8 {[%clk 0:02:10]} 16. Nxh8 {[%clk 0:01:30]}  Rxf4 {[%clk 0:02:10]} 17. Rhe1 {[%clk 0:01:29]}  Kd8 {[%clk 0:02:11]} 18. Re3 {[%clk 0:00:39]}  Rf8 {[%clk 0:02:09]} 19. Rg3 {[%clk 0:00:31]}  g5 {[%clk 0:01:44]} 20. h4 {[%clk 0:00:11]}  Rxh8 {[%clk 0:01:34]} 21. hxg5 {[%clk 0:00:11]}  Rf8 {[%clk 0:01:33]} 22. f3 {[%clk 0:00:08]}  Bd6 {[%clk 0:01:31]} 23. Rg4 {[%clk 0:00:08]}  Ne5 {[%clk 0:01:26]} 24. Re4 {[%clk 0:00:08]}  Ng6 {[%clk 0:01:22]} 25. Kb1 {[%clk 0:00:06]}  Rf5 {[%clk 0:01:17]} 26. Rh1 {[%clk 0:00:06]}  Rxg5 {[%clk 0:01:14]} 27. g4 {[%clk 0:00:07]}  Nf8 {[%clk 0:01:12]} 28. Rh5 {[%clk 0:00:06]}  Rxh5 {[%clk 0:01:11]} 29. gxh5 {[%clk 0:00:07]}  Kd7 {[%clk 0:01:07]} 30. c3 {[%clk 0:00:08]}  Ne6 {[%clk 0:01:06]} 31. Kc2 {[%clk 0:00:08]}  Ke7 {[%clk 0:01:06]} 32. b4 {[%clk 0:00:07]}  Kf6 {[%clk 0:01:05]} 33. Rg4 {[%clk 0:00:07]}  Ng5 {[%clk 0:00:58]} 34. f4 {[%clk 0:00:06]}  Ne6 {[%clk 0:00:58]} 35. Rg8 {[%clk 0:00:04]}  Nxf4 {[%clk 0:00:56]} 36. h6 {[%clk 0:00:04]}  Ne6 {[%clk 0:00:52]} 37. Kd3 {[%clk 0:00:03]}  Bf4 {[%clk 0:00:43]} 38. Ra8 {[%clk 0:00:02]}  a6 {[%clk 0:00:43]} 39. Ra7 {[%clk 0:00:02]}  Nd8 {[%clk 0:00:42]} 40. Ra8 {[%clk 0:00:02]}  Ke7 {[%clk 0:00:43]} 0-1


[Site "https://www.chess.com"]

[Event "Titled Tuesday Blitz April 25 Late 2023"]
[White "Aldokhin, Ivan"]
[Black "Khandelwal, Ankush"]
[WhiteFideId "24115720"]
[BlackFideId "413470"]
[WhiteElo "2322"]
[BlackElo "2263"]
[Result "1/2-1/2"]
[Round "04"]
[TimeControl "180+2"]
[Date "2023.04.25"]
[WhiteClock "0:00:05"]
[BlackClock "0:00:05"]

1. e4 {[%clk 0:02:55]}  c5 {[%clk 0:03:00]} 2. Nf3 {[%clk 0:02:55]}  d6 {[%clk 0:02:59]} 3. d4 {[%clk 0:02:56]}  cxd4 {[%clk 0:02:59]} 4. Nxd4 {[%clk 0:02:57]}  Nf6 {[%clk 0:02:57]} 5. Nc3 {[%clk 0:02:57]}  a6 {[%clk 0:02:57]} 6. Bc4 {[%clk 0:02:58]}  b5 {[%clk 0:02:40]} 7. Bd5 {[%clk 0:02:53]}  Nxd5 {[%clk 0:02:36]} 8. exd5 {[%clk 0:02:53]}  Bb7 {[%clk 0:02:20]} 9. Qf3 {[%clk 0:02:52]}  e5 {[%clk 0:02:08]} 10. Nc6 {[%clk 0:02:37]}  Qc7 {[%clk 0:02:02]} 11. Nxb8 {[%clk 0:02:25]}  Rxb8 {[%clk 0:02:03]} 12. a3 {[%clk 0:02:22]}  Be7 {[%clk 0:02:02]} 13. Qg3 {[%clk 0:02:14]}  Kf8 {[%clk 0:01:41]} 14. O-O {[%clk 0:02:08]}  h5 {[%clk 0:01:41]} 15. f4 {[%clk 0:02:07]}  h4 {[%clk 0:01:41]} 16. Qf3 {[%clk 0:02:03]}  Bf6 {[%clk 0:01:32]} 17. fxe5 {[%clk 0:01:35]}  Bxe5 {[%clk 0:01:30]} 18. Bf4 {[%clk 0:01:33]}  h3 {[%clk 0:00:44]} 19. Bxe5 {[%clk 0:01:22]}  dxe5 {[%clk 0:00:44]} 20. g4 {[%clk 0:01:11]}  e4 {[%clk 0:00:32]} 21. Qxe4 {[%clk 0:00:43]}  Re8 {[%clk 0:00:32]} 22. Qf4 {[%clk 0:00:41]}  Qc5+ {[%clk 0:00:29]} 23. Qf2 {[%clk 0:00:38]}  Qc7 {[%clk 0:00:17]} 24. Rae1 {[%clk 0:00:37]}  Rxe1 {[%clk 0:00:15]} 25. Rxe1 {[%clk 0:00:37]}  Rh6 {[%clk 0:00:15]} 26. Re3 {[%clk 0:00:21]}  Rf6 {[%clk 0:00:14]} 27. Qg3 {[%clk 0:00:19]}  Qc5 {[%clk 0:00:10]} 28. Qe5 {[%clk 0:00:12]}  Kg8 {[%clk 0:00:10]} 29. b4 {[%clk 0:00:03]}  Qc8 {[%clk 0:00:05]} 30. Qe8+ {[%clk 0:00:02]}  Qxe8 {[%clk 0:00:05]} 31. Rxe8+ {[%clk 0:00:03]}  Kh7 {[%clk 0:00:06]} 32. Re7 {[%clk 0:00:03]}  Ba8 {[%clk 0:00:07]} 33. Ne4 {[%clk 0:00:03]}  Rf4 {[%clk 0:00:06]} 34. Ng3 {[%clk 0:00:02]}  Bxd5 {[%clk 0:00:05]} 35. Re5 {[%clk 0:00:02]}  Be6 {[%clk 0:00:05]} 36. g5 {[%clk 0:00:01]}  Rc4 {[%clk 0:00:05]} 37. Re2 {[%clk 0:00:02]}  Rc3 {[%clk 0:00:05]} 38. Ne4 {[%clk 0:00:01]}  Rxa3 {[%clk 0:00:05]} 39. Nc5 {[%clk 0:00:02]}  Ra1+ {[%clk 0:00:05]} 40. Kf2 {[%clk 0:00:02]}  Rh1 {[%clk 0:00:06]} 41. Kg3 {[%clk 0:00:02]}  Rg1+ {[%clk 0:00:07]} 42. Kh4 {[%clk 0:00:02]}  Rg2 {[%clk 0:00:07]} 43. Re4 {[%clk 0:00:01]}  Rxh2 {[%clk 0:00:08]} 44. Nxe6 {[%clk 0:00:02]}  fxe6 {[%clk 0:00:08]} 45. Kg3 {[%clk 0:00:03]}  Rxc2 {[%clk 0:00:08]} 46. Rxe6 {[%clk 0:00:03]}  Rc3+ {[%clk 0:00:08]} 47. Kg4 {[%clk 0:00:03]}  Rc4+ {[%clk 0:00:09]} 48. Kxh3 {[%clk 0:00:03]}  Rxb4 {[%clk 0:00:10]} 49. Kg3 {[%clk 0:00:03]}  Rb3+ {[%clk 0:00:10]} 50. Kg4 {[%clk 0:00:03]}  Rb4+ {[%clk 0:00:10]} 51. Kg3 {[%clk 0:00:03]}  Rb3+ {[%clk 0:00:10]} 52. Kg4 {[%clk 0:00:03]}  Ra3 {[%clk 0:00:11]} 53. Kf5 {[%clk 0:00:03]}  g6+ {[%clk 0:00:10]} 54. Kf6 {[%clk 0:00:03]}  Rf3+ {[%clk 0:00:10]} 55. Ke7 {[%clk 0:00:03]}  Rf5 {[%clk 0:00:11]} 56. Rxa6 {[%clk 0:00:03]}  Rxg5 {[%clk 0:00:11]} 57. Rb6 {[%clk 0:00:03]}  Rf5 {[%clk 0:00:12]} 58. Ke6 {[%clk 0:00:03]}  Kh6 {[%clk 0:00:12]} 59. Rb8 {[%clk 0:00:02]}  Kg5 {[%clk 0:00:13]} 60. Rb7 {[%clk 0:00:02]}  Kf4 {[%clk 0:00:12]} 61. Rg7 {[%clk 0:00:02]}  g5 {[%clk 0:00:13]} 62. Rd7 {[%clk 0:00:01]}  g4 {[%clk 0:00:12]} 63. Rd4+ {[%clk 0:00:02]}  Kg5 {[%clk 0:00:12]} 64. Rb4 {[%clk 0:00:02]}  g3 {[%clk 0:00:13]} 65. Rb3 {[%clk 0:00:02]}  Kg4 {[%clk 0:00:09]} 66. Rxg3+ {[%clk 0:00:03]}  Kxg3 {[%clk 0:00:10]} 67. Kxf5 {[%clk 0:00:03]}  Kf3 {[%clk 0:00:05]} 68. Ke5 {[%clk 0:00:04]}  Ke3 {[%clk 0:00:05]} 69. Kd5 {[%clk 0:00:04]}  Kd3 {[%clk 0:00:04]} 70. Kc5 {[%clk 0:00:04]}  b4 {[%clk 0:00:05]} 71. Kxb4 {[%clk 0:00:05]} 1/2-1/2


[Site "https://www.chess.com"]

[Event "Titled Tuesday Blitz April 25 Late 2023"]
[White "Prohaszka, Peter"]
[Black "Gurevich, Dmitry"]
[WhiteFideId "726265"]
[BlackFideId "2000407"]
[WhiteElo "2626"]
[BlackElo "2506"]
[Result "1-0"]
[Round "04"]
[TimeControl "180+2"]
[Date "2023.04.25"]
[WhiteClock "0:00:13"]
[BlackClock "0:00:36"]

1. d4 {[%clk 0:02:54]}  Nf6 {[%clk 0:02:59]} 2. c3 {[%clk 0:02:47]}  g6 {[%clk 0:02:57]} 3. Bf4 {[%clk 0:02:46]}  Bg7 {[%clk 0:02:57]} 4. Nd2 {[%clk 0:02:45]}  O-O {[%clk 0:02:58]} 5. Ngf3 {[%clk 0:02:43]}  d6 {[%clk 0:02:58]} 6. h3 {[%clk 0:02:43]}  c5 {[%clk 0:02:57]} 7. dxc5 {[%clk 0:02:42]}  dxc5 {[%clk 0:02:57]} 8. e4 {[%clk 0:02:42]}  Nc6 {[%clk 0:02:54]} 9. Bc4 {[%clk 0:02:35]}  b6 {[%clk 0:02:49]} 10. O-O {[%clk 0:02:34]}  Bb7 {[%clk 0:02:49]} 11. Re1 {[%clk 0:02:34]}  Na5 {[%clk 0:02:42]} 12. Bf1 {[%clk 0:02:32]}  Nh5 {[%clk 0:02:39]} 13. Bh2 {[%clk 0:02:26]}  e5 {[%clk 0:02:38]} 14. Nxe5 {[%clk 0:02:17]}  Re8 {[%clk 0:02:26]} 15. Ndc4 {[%clk 0:02:06]}  Nxc4 {[%clk 0:02:17]} 16. Nxc4 {[%clk 0:02:07]}  Rxe4 {[%clk 0:02:06]} 17. Qxd8+ {[%clk 0:01:55]}  Rxd8 {[%clk 0:02:04]} 18. Nd6 {[%clk 0:01:55]}  Rxe1 {[%clk 0:01:56]} 19. Rxe1 {[%clk 0:01:56]}  Bd5 {[%clk 0:01:52]} 20. Ne8 {[%clk 0:00:43]}  Bxa2 {[%clk 0:01:26]} 21. g4 {[%clk 0:00:30]}  Nf6 {[%clk 0:01:18]} 22. Nxg7 {[%clk 0:00:30]}  Kxg7 {[%clk 0:01:17]} 23. Be5 {[%clk 0:00:30]}  g5 {[%clk 0:01:12]} 24. h4 {[%clk 0:00:29]}  h6 {[%clk 0:01:12]} 25. f4 {[%clk 0:00:28]}  Kg6 {[%clk 0:01:05]} 26. h5+ {[%clk 0:00:20]}  Kg7 {[%clk 0:01:04]} 27. fxg5 {[%clk 0:00:21]}  hxg5 {[%clk 0:01:04]} 28. Re2 {[%clk 0:00:15]}  Rd5 {[%clk 0:00:43]} 29. Bg2 {[%clk 0:00:12]}  Rxe5 {[%clk 0:00:37]} 30. Rxe5 {[%clk 0:00:13]}  Nxg4 {[%clk 0:00:36]} 31. Rxg5+ {[%clk 0:00:13]} 1-0


[Site "https://www.chess.com"]

[Event "Titled Tuesday Blitz April 25 Late 2023"]
[White "Spata, German"]
[Black "Gonzalez Zamora, Juan Carlos"]
[WhiteFideId "113026"]
[BlackFideId "3507548"]
[WhiteElo "2238"]
[BlackElo "2535"]
[Result "1/2-1/2"]
[Round "04"]
[TimeControl "180+2"]
[Date "2023.04.25"]
[WhiteClock "0:00:07"]
[BlackClock "0:00:08"]

1. Nf3 {[%clk 0:02:56]}  Nf6 {[%clk 0:02:59]} 2. g3 {[%clk 0:02:57]}  g6 {[%clk 0:03:00]} 3. b3 {[%clk 0:02:56]}  Bg7 {[%clk 0:03:00]} 4. Bb2 {[%clk 0:02:55]}  O-O {[%clk 0:03:01]} 5. Bg2 {[%clk 0:02:55]}  d6 {[%clk 0:03:01]} 6. d4 {[%clk 0:02:55]}  a5 {[%clk 0:03:01]} 7. a4 {[%clk 0:02:51]}  Nbd7 {[%clk 0:02:57]} 8. O-O {[%clk 0:02:51]}  Re8 {[%clk 0:02:57]} 9. Na3 {[%clk 0:02:46]}  c6 {[%clk 0:02:57]} 10. Re1 {[%clk 0:02:45]}  d5 {[%clk 0:02:50]} 11. c4 {[%clk 0:02:38]}  Qb6 {[%clk 0:02:24]} 12. cxd5 {[%clk 0:02:37]}  Nxd5 {[%clk 0:02:18]} 13. Nc4 {[%clk 0:02:31]}  Qc7 {[%clk 0:02:18]} 14. Rc1 {[%clk 0:02:26]}  Qb8 {[%clk 0:02:05]} 15. e4 {[%clk 0:02:23]}  Nb4 {[%clk 0:02:04]} 16. e5 {[%clk 0:02:14]}  b5 {[%clk 0:01:51]} 17. axb5 {[%clk 0:01:51]}  cxb5 {[%clk 0:01:52]} 18. Ne3 {[%clk 0:01:47]}  Nb6 {[%clk 0:01:49]} 19. Ba3 {[%clk 0:01:32]}  Bb7 {[%clk 0:01:23]} 20. Bxb4 {[%clk 0:01:25]}  axb4 {[%clk 0:01:24]} 21. Qd2 {[%clk 0:01:25]}  Nd5 {[%clk 0:01:08]} 22. Nxd5 {[%clk 0:01:24]}  Bxd5 {[%clk 0:01:09]} 23. Qxb4 {[%clk 0:01:24]}  Qb7 {[%clk 0:01:09]} 24. Nh4 {[%clk 0:01:24]}  Bxg2 {[%clk 0:01:01]} 25. Nxg2 {[%clk 0:01:24]}  e6 {[%clk 0:01:02]} 26. Ne3 {[%clk 0:01:11]}  Bf8 {[%clk 0:01:01]} 27. Qd2 {[%clk 0:01:08]}  Red8 {[%clk 0:00:56]} 28. Red1 {[%clk 0:00:58]}  Ra3 {[%clk 0:00:47]} 29. Qd3 {[%clk 0:00:52]}  Bh6 {[%clk 0:00:35]} 30. Ra1 {[%clk 0:00:47]}  Rxa1 {[%clk 0:00:30]} 31. Rxa1 {[%clk 0:00:47]}  Qf3 {[%clk 0:00:28]} 32. Rc1 {[%clk 0:00:40]}  Ra8 {[%clk 0:00:21]} 33. Qd1 {[%clk 0:00:19]}  Qe4 {[%clk 0:00:18]} 34. Qd2 {[%clk 0:00:17]}  Rd8 {[%clk 0:00:17]} 35. Rd1 {[%clk 0:00:17]}  Bg7 {[%clk 0:00:16]} 36. f4 {[%clk 0:00:14]}  h5 {[%clk 0:00:15]} 37. Qd3 {[%clk 0:00:13]}  Qb7 {[%clk 0:00:14]} 38. d5 {[%clk 0:00:13]}  exd5 {[%clk 0:00:12]} 39. Nxd5 {[%clk 0:00:14]}  Rc8 {[%clk 0:00:10]} 40. Qe4 {[%clk 0:00:08]}  Qa7+ {[%clk 0:00:09]} 41. Qe3 {[%clk 0:00:08]}  Qxe3+ {[%clk 0:00:08]} 42. Nxe3 {[%clk 0:00:08]}  Rc3 {[%clk 0:00:08]} 43. Nd5 {[%clk 0:00:07]}  Rxb3 {[%clk 0:00:09]} 44. Ne7+ {[%clk 0:00:06]}  Kh7 {[%clk 0:00:08]} 45. Rd7 {[%clk 0:00:06]}  Rb2 {[%clk 0:00:06]} 46. Nd5 {[%clk 0:00:05]}  Kg8 {[%clk 0:00:07]} 47. Rd8+ {[%clk 0:00:05]}  Kh7 {[%clk 0:00:07]} 48. Rd7 {[%clk 0:00:06]}  Kg8 {[%clk 0:00:07]} 49. Rd8+ {[%clk 0:00:06]}  Kh7 {[%clk 0:00:08]} 50. Rd7 {[%clk 0:00:07]} 1/2-1/2


[Site "https://www.chess.com"]